bitfinex/quotes_BTCUSD_20250108
["timestamp","ask_amount","ask_price","bid_price","bid_amount"]
[1736356660234,0.35429976,94001.0,94000.0,0.0001252]
[1736356661127,0.36929976,94001.0,94000.0,0.0021252]
[1736356661334,0.56029976,94001.0,94000.0,2e-07]
[1736356661507,0.462797,93986.0,93978.0,8.53e-05]
[1736356661715,0.94025546,93986.0,93985.0,0.00059314]
[1736356661930,1.44987946,93986.0,93985.0,0.00059314]
[1736356662131,1.48386346,93986.0,93985.0,0.00059314]
[1736356662287,1.36858846,93986.0,93985.0,0.00059314]
[1736356662483,0.462811,93980.0,93978.0,8.53e-05]
[1736356662693,0.68544676,93980.0,93978.0,8.53e-05]
[1736356662890,0.45,93976.0,93975.0,0.01738087]
[1736356663101,0.35,93972.0,93971.0,0.13623627]
[1736356663454,0.65389976,93972.0,93971.0,0.13623627]
[1736356663687,0.65389976,93972.0,93971.0,0.05873627]
[1736356663870,0.15,93937.0,93928.0,2.59952005]
[1736356664180,0.212926,93929.0,93928.0,2.59952005]
[1736356664381,0.41722576,93929.0,93928.0,2.59952005]
[1736356664823,0.212926,93929.0,93928.0,2.59952005]
[1736356664967,0.425821,93936.0,93928.0,2.59952005]
[1736356665153,0.212926,93930.0,93928.0,2.59952005]
[1736356665371,0.00050731,93936.0,93928.0,2.59952005]
[1736356665779,0.005,93929.0,93928.0,2.59952005]
[1736356665981,0.005,93929.0,93928.0,2.60538442]
[1736356666422,0.005,93929.0,93928.0,2.81931342]
[1736356666848,0.005,93929.0,93928.0,2.92361318]
[1736356667009,0.005,93929.0,93928.0,2.92261318]
[1736356667186,0.00050731,93936.0,93928.0,2.60538442]
[1736356667384,0.00050731,93936.0,93934.0,0.212914]
[1736356667579,0.00550731,93936.0,93934.0,0.212914]
[1736356667781,0.00550731,93936.0,93935.0,0.00583144]
[1736356668105,0.00050731,93936.0,93930.0,0.212923]
[1736356668298,0.00050731,93936.0,93935.0,0.00583144]
[1736356668555,0.00050731,93936.0,93935.0,0.18159976]
[1736356668748,0.00050731,93936.0,93935.0,0.18849553]
[1736356668904,0.00050731,93936.0,93935.0,0.1874312]
[1736356669113,0.00150731,93936.0,93935.0,0.08713144]
[1736356669520,0.00150731,93936.0,93935.0,0.1914312]
[1736356669724,0.00150731,93936.0,93935.0,0.1934312]
[1736356670136,0.00150731,93936.0,93935.0,0.01183144]
[1736356670347,0.00050731,93936.0,93935.0,0.00583144]
[1736356670552,0.10480707,93936.0,93935.0,0.003]
[1736356670755,0.10580707,93936.0,93935.0,0.007]
[1736356670959,0.00050731,93936.0,93935.0,0.003]
[1736356671166,0.00050731,93936.0,93928.0,2.59956005]
[1736356671371,0.00150731,93936.0,93935.0,4e-05]
[1736356671577,0.00350731,93936.0,93935.0,4e-05]
[1736356671781,0.00250731,93936.0,93935.0,4e-05]
[1736356671987,0.00350731,93936.0,93935.0,4e-05]
[1736356672183,0.00350731,93936.0,93935.0,0.00587144]
[1736356672388,0.00350731,93936.0,93935.0,0.1101712]
[1736356672604,0.00350731,93936.0,93935.0,0.18853562]
[1736356672844,0.00150731,93936.0,93935.0,0.31153562]
[1736356673062,0.00150731,93936.0,93935.0,0.2874712]
[1736356673063,0.00350731,93936.0,93935.0,0.2874712]
[1736356673503,0.00250731,93936.0,93935.0,0.2874712]
[1736356673686,0.00050731,93936.0,93935.0,0.2914712]
[1736356673888,0.00150731,93936.0,93935.0,0.2620712]
[1736356674121,0.00050731,93936.0,93935.0,0.25589565]
[1736356674313,0.00050731,93936.0,93935.0,0.35589565]
[1736356674486,0.00150731,93936.0,93935.0,0.57673565]
[1736356674687,0.00050731,93936.0,93935.0,0.47273565]
[1736356674886,0.00050731,93936.0,93935.0,0.47673565]
[1736356675208,0.00150731,93936.0,93935.0,0.48073565]
[1736356675415,0.00050731,93936.0,93935.0,0.57673565]
[1736356675620,0.00050731,93936.0,93935.0,0.47673565]
[1736356675951,0.00050731,93936.0,93935.0,0.28089565]
[1736356676121,0.00050731,93936.0,93935.0,0.37689565]
[1736356676325,0.20635031,93966.0,93953.0,0.212871]
[1736356676531,0.20635031,93966.0,93936.0,0.1]
[1736356676864,0.20635031,93966.0,93938.0,0.023]
[1736356677075,0.212836,93969.0,93949.0,0.212879]
[1736356677193,0.042632,93972.0,93949.0,0.212879]
[1736356677403,0.21285,93963.0,93950.0,0.00576089]
[1736356677605,0.042632,93972.0,93951.0,0.10429976]
[1736356677829,0.212853,93962.0,93952.0,0.00575148]
[1736356678049,0.212853,93962.0,93952.0,0.10429976]
[1736356678280,0.001,93966.0,93953.0,0.00574678]
[1736356678478,0.212857,93960.0,93953.0,0.00574678]
[1736356678711,0.212857,93960.0,93950.0,0.02182142]
[1736356679061,0.212852,93962.0,93950.0,0.02182142]
[1736356679264,0.042635,93966.0,93952.0,0.212874]
[1736356679438,0.212842,93966.0,93955.0,0.212866]
[1736356679641,0.5859941,93966.0,93956.0,0.00573267]
[1736356679848,0.002,93972.0,93950.0,0.02182142]
[1736356680043,0.212846,93965.0,93951.0,0.00575619]
[1736356680200,0.042633,93973.0,93957.0,0.212863]
[1736356680401,0.001,93962.0,93958.0,0.00572327]
[1736356680604,0.001,93962.0,93950.0,0.02282142]
[1736356680806,0.212874,93953.0,93950.0,0.02282142]
[1736356681007,0.001,93962.0,93935.0,0.00059437]
[1736356681008,0.00122624,93952.0,93935.0,0.00059437]
[1736356681207,0.00122624,93961.0,93936.0,0.00582674]
[1736356681527,0.00122624,93961.0,93956.0,0.001]
[1736356681528,0.15,93957.0,93956.0,0.001]
[1736356681735,0.105526,93957.0,93956.0,0.001]
[1736356682051,0.105526,93957.0,93935.0,0.21350537]
[1736356682052,0.01665629,93958.0,93940.0,0.212901]
[1736356682288,0.212867,93955.0,93941.0,0.00580322]
[1736356682513,0.10429976,93954.0,93941.0,0.00580322]
[1736356682720,0.001,93965.0,93948.0,0.083]
[1736356682928,0.001,93965.0,93956.0,0.212864]
[1736356683146,0.001,93965.0,93962.0,0.212851]
[1736356683147,0.01666353,93965.0,93962.0,0.212851]
[1736356683348,0.01666353,93965.0,93964.0,0.235847]
[1736356683550,0.212792,93989.0,93972.0,0.212829]
[1736356683813,0.212792,93989.0,93964.0,0.12729976]
[1736356683814,0.212801,93985.0,93964.0,0.00569506]
[1736356684012,0.212811,93980.0,93973.0,0.00565275]
[1736356684303,0.212811,93980.0,93953.0,0.02126318]
[1736356684304,0.3731303,93985.0,93957.0,0.00106421]
[1736356684508,0.212808,93982.0,93962.0,0.004]
[1736356684714,0.212808,93982.0,93963.0,0.00106416]
[1736356684866,0.021592,93991.0,93963.0,0.00106416]
[1736356684867,0.021592,93991.0,93972.0,0.212827]
[1736356685069,0.212799,93986.0,93972.0,0.212827]
[1736356685300,0.212799,93986.0,93973.0,0.00565275]
[1736356685473,0.021592,93991.0,93973.0,0.00565275]
[1736356685672,0.021592,93991.0,93973.0,0.00671682]
[1736356685872,0.0001706,94010.0,93973.0,0.11101658]
[1736356686108,0.00122624,94009.0,94006.0,0.212752]
[1736356686312,0.042616,94010.0,94005.0,0.212752]
[1736356686508,0.03,94018.0,94007.0,0.005493]
[1736356686804,0.0001708,94030.0,94003.0,0.19584]
[1736356686805,0.0001708,94030.0,94029.0,0.2127]
[1736356687029,0.0001708,94030.0,94029.0,0.32078453]
[1736356687230,0.0001708,94030.0,94029.0,0.52468785]
[1736356687430,0.212638,94057.0,94038.0,0.291879]
[1736356687590,0.212625,94063.0,94040.0,0.36192935]
[1736356687792,0.212611,94069.0,94041.0,0.00906331]
[1736356688040,0.042592,94069.0,94042.0,0.10429976]
[1736356688240,0.11639732,94101.0,94042.0,0.10429976]
[1736356688241,0.1,94086.0,94044.0,0.212666]
[1736356688465,0.2126,94074.0,94045.0,0.00797187]
[1736356688629,0.003,94057.0,94047.0,0.212659]
[1736356688828,0.00122624,94065.0,94048.0,0.00795075]
[1736356689026,0.00139704,94066.0,94054.0,0.212641]
[1736356689255,0.00139704,94066.0,94039.0,0.02181207]
[1736356689256,0.0001708,94066.0,94065.0,0.212618]
[1736356689403,0.0001708,94066.0,94065.0,0.22044911]
[1736356689975,0.0001708,94066.0,94065.0,0.32474887]
[1736356690322,0.0001708,94066.0,94065.0,0.36854652]
[1736356690529,0.0001708,94066.0,94065.0,0.36910089]
[1736356690727,0.0011708,94066.0,94065.0,0.46490089]
[1736356690931,0.0001708,94066.0,94065.0,0.44190089]
[1736356691324,0.0011708,94066.0,94065.0,0.35110089]
[1736356691454,0.0021708,94066.0,94065.0,0.01738548]
[1736356691657,0.0011708,94066.0,94065.0,0.01338548]
[1736356691863,0.0011708,94066.0,94065.0,0.00555437]
[1736356692068,0.0021708,94066.0,94065.0,0.00955437]
[1736356692290,0.212545,94098.0,94065.0,0.00955437]
[1736356692291,0.1,94110.0,94070.0,0.1]
[1736356692490,0.212449,94141.0,94102.0,0.212533]
[1736356692491,0.21371624,94122.0,94102.0,0.212533]
[1736356692697,0.0001704,94119.0,94097.0,0.09576]
[1736356692902,0.0001704,94119.0,94104.0,0.21253]
[1736356693103,0.0001704,94119.0,94098.0,0.10536231]
[1736356693104,0.0001704,94119.0,94100.0,0.212538]
[1736356693256,0.212499,94118.0,94105.0,0.00754975]
[1736356693630,0.0001704,94119.0,94106.0,0.22006872]
[1736356694087,0.212499,94118.0,94106.0,0.00809709]
[1736356694317,0.0071704,94119.0,94106.0,0.00809709]
[1736356694524,0.21251,94113.0,94106.0,0.00809709]
[1736356694750,0.0001704,94119.0,94106.0,0.00055437]
[1736356695185,0.0001704,94119.0,94107.0,0.00859824]
[1736356695386,0.0001704,94119.0,94109.0,0.212517]
[1736356695587,0.0001704,94119.0,94107.0,0.10329569]
[1736356695797,0.0001704,94119.0,94108.0,0.31788324]
[1736356696014,0.0001704,94119.0,94107.0,0.10329569]
[1736356696255,0.0001704,94119.0,94109.0,0.00752163]
[1736356696457,0.212517,94110.0,94106.0,0.00055437]
[1736356696678,0.212501,94117.0,94106.0,0.00055437]
[1736356697125,0.0001704,94119.0,94106.0,0.00055437]
[1736356697364,0.0001704,94119.0,94114.0,0.212506]
[1736356697570,0.0001704,94119.0,94106.0,0.00055437]
[1736356697773,0.001,94110.0,94106.0,0.00055437]
[1736356698122,0.212499,94118.0,94106.0,0.00055437]
[1736356698330,0.212519,94110.0,94106.0,0.00355437]
[1736356698675,0.105526,94109.0,94106.0,0.00355437]
[1736356699079,0.212506,94115.0,94106.0,0.00355437]
[1736356699288,0.3725747,94118.0,94106.0,0.00355437]
[1736356699524,0.0001704,94119.0,94106.0,0.00355437]
[1736356699721,0.212499,94118.0,94107.0,0.00774817]
[1736356699927,0.0001704,94119.0,94107.0,0.00774817]
[1736356700136,0.001,94118.0,94113.0,0.212508]
[1736356700342,0.001,94118.0,94114.0,0.0010624]
[1736356700558,0.001,94118.0,94115.0,0.212505]
[1736356700771,0.0001704,94119.0,94116.0,0.0010623]
[1736356700976,0.001,94118.0,94117.0,0.31680076]
[1736356701174,0.001,94118.0,94117.0,0.47995686]
[1736356701301,0.001,94118.0,94117.0,0.57995686]
[1736356701512,0.0001704,94119.0,94118.0,0.1]
[1736356701712,0.0001704,94119.0,94118.0,0.20536192]
[1736356701910,0.0001704,94119.0,94118.0,0.1119706]
[1736356702234,0.0001704,94119.0,94118.0,0.11303276]
[1736356702433,0.0001704,94119.0,94118.0,0.19589744]
[1736356702652,0.0001704,94119.0,94118.0,0.00767084]
[1736356703030,0.0001704,94119.0,94083.0,0.1]
[1736356703031,0.0011704,94119.0,94116.0,0.005]
[1736356703227,0.0011704,94119.0,94100.0,4e-05]
[1736356703228,0.362524,94107.0,94100.0,4e-05]
[1736356703443,0.46682376,94107.0,94100.0,4e-05]
[1736356703634,0.3726316,94107.0,94106.0,0.41742013]
[1736356703982,0.0011704,94119.0,94106.0,0.18306]
[1736356703983,0.0001704,94119.0,94106.0,0.18306]
[1736356704183,0.0001704,94119.0,94118.0,0.003]
[1736356704372,0.0061704,94119.0,94118.0,0.10836206]
[1736356704596,0.0001704,94119.0,94118.0,0.2058329]
[1736356704748,0.0001704,94119.0,94118.0,0.2037706]
[1736356704960,0.0001704,94119.0,94118.0,0.26664826]
[1736356705722,0.0001704,94119.0,94118.0,0.51664826]
[1736356705922,0.0001704,94119.0,94118.0,0.54264826]
[1736356706585,0.0001702,94150.0,94123.0,0.212487]
[1736356706773,0.0001702,94150.0,94124.0,0.10536189]
[1736356706968,0.0001702,94150.0,94124.0,0.2026599]
[1736356707164,0.0001702,94150.0,94124.0,0.45159777]
[1736356707726,0.0011708,94125.0,94124.0,0.45159777]
[1736356707951,0.0001708,94125.0,94124.0,0.45159777]
[1736356708171,0.0001708,94125.0,94124.0,0.47459777]
[1736356708524,0.0001702,94150.0,94149.0,0.212429]
[1736356708657,0.0001702,94150.0,94149.0,0.40948876]
[1736356708885,0.0001702,94150.0,94149.0,0.41694178]
[1736356709104,0.0001702,94150.0,94149.0,0.21988202]
[1736356709335,0.0001702,94150.0,94149.0,0.00745302]
[1736356709698,0.0001702,94150.0,94149.0,0.00055437]
[1736356709915,0.0011702,94150.0,94149.0,0.01300739]
[1736356710116,0.0011702,94150.0,94149.0,0.00555437]
[1736356710323,0.0001702,94150.0,94149.0,0.00800739]
[1736356710520,0.0001702,94150.0,94149.0,0.00255437]
[1736356710723,0.0001702,94150.0,94149.0,0.01300739]
[1736356710923,0.0001702,94150.0,94149.0,0.00355437]
[1736356711187,0.0001702,94150.0,94149.0,0.01100739]
[1736356711299,0.0001702,94150.0,94149.0,0.00355437]
[1736356711504,0.0001702,94150.0,94149.0,0.01100739]
[1736356711706,0.0001702,94150.0,94149.0,0.00355437]
[1736356712069,0.1056962,94150.0,94149.0,0.00455437]
[1736356712280,0.4781407,94150.0,94149.0,0.00455437]
[1736356712475,0.47691446,94150.0,94149.0,0.00155437]
[1736356712686,0.51946846,94150.0,94149.0,0.00155437]
[1736356712839,0.66946846,94150.0,94149.0,0.00555437]
[1736356713050,0.66946846,94150.0,94149.0,0.00155437]
[1736356713245,0.4151687,94150.0,94149.0,0.00155437]
[1736356713445,0.0467242,94150.0,94149.0,0.00155437]
[1736356713642,0.0427242,94150.0,94149.0,0.00055437]
[1736356714073,0.0507242,94150.0,94149.0,0.00155437]
[1736356714477,0.0427242,94150.0,94149.0,0.00055437]
[1736356715792,0.0427242,94150.0,94149.0,0.21498337]
[1736356716039,0.0427242,94150.0,94149.0,0.21298337]
[1736356716238,0.0001702,94150.0,94149.0,0.22043639]
[1736356716392,0.0001702,94150.0,94149.0,0.22143639]
[1736356716596,0.0001702,94150.0,94149.0,0.49773615]
[1736356716801,0.0001704,94183.0,94175.0,0.21237]
[1736356717115,0.004253,94182.0,94175.0,0.21964044]
[1736356717319,0.0001704,94183.0,94175.0,0.21964044]
[1736356717479,0.0001704,94183.0,94175.0,0.00727044]
[1736356717691,0.0001704,94183.0,94169.0,0.212383]
[1736356717890,0.0001704,94183.0,94171.0,0.212379]
[1736356718135,0.212355,94182.0,94172.0,0.0072915]
[1736356718352,0.31666976,94175.0,94172.0,0.0072915]
[1736356718527,0.212395,94164.0,94149.0,0.00855437]
[1736356718731,0.00122624,94163.0,94149.0,0.00855437]
[1736356719007,0.212403,94161.0,94150.0,0.007446]
[1736356719152,0.212381,94170.0,94150.0,0.007446]
[1736356719365,0.0011706,94176.0,94149.0,0.0016164]
[1736356719567,7.751e-05,94176.0,94150.0,0.10429976]
[1736356719813,7.751e-05,94176.0,94150.0,0.11174576]
[1736356720013,7.751e-05,94176.0,94151.0,0.00106194]
[1736356720219,7.751e-05,94176.0,94171.0,0.002]
[1736356720599,7.751e-05,94176.0,94160.0,0.212403]
[1736356720794,7.751e-05,94176.0,94172.0,0.0072915]
[1736356721031,0.00107751,94176.0,94172.0,0.0072915]
[1736356721244,0.00107751,94176.0,94155.0,0.212415]
[1736356721454,0.00107751,94176.0,94149.0,0.00055437]
[1736356721455,0.105526,94175.0,94149.0,0.00055437]
[1736356721664,0.212407,94159.0,94156.0,0.00740385]
[1736356721852,0.212381,94171.0,94149.0,0.00055437]
[1736356722051,0.212419,94154.0,94149.0,0.00055437]
[1736356722253,0.212411,94157.0,94149.0,0.00055437]
[1736356722665,0.212421,94153.0,94149.0,0.00055437]
[1736356722869,0.10429976,94170.0,94156.0,0.006]
[1736356722870,0.001,94159.0,94156.0,0.006]
[1736356723074,0.212408,94158.0,94156.0,0.006]
[1736356723275,0.212393,94165.0,94149.0,0.00055437]
[1736356723515,0.001,94175.0,94150.0,0.007446]
[1736356723724,0.21241,94158.0,94150.0,0.007446]
[1736356723897,0.212399,94162.0,94150.0,0.007446]
[1736356724123,0.001,94158.0,94150.0,0.007446]
[1736356724298,0.002,94158.0,94150.0,0.007446]
[1736356724500,0.212411,94157.0,94150.0,0.007446]
[1736356724733,0.212411,94157.0,94149.0,0.00055437]
[1736356724936,0.001,94158.0,94149.0,0.00055437]
[1736356725157,0.001,94158.0,94156.0,0.212412]
[1736356725372,0.002,94162.0,94157.0,0.00106189]
[1736356725578,0.002,94162.0,94158.0,0.212408]
[1736356725785,0.002,94162.0,94160.0,0.212404]
[1736356726191,0.002,94162.0,94161.0,0.00736874]
[1736356726395,0.0001704,94199.0,94175.0,0.21237]
[1736356726598,0.2124864,94199.0,94175.0,0.21237]
[1736356726805,0.004253,94190.0,94175.0,0.21964044]
[1736356727018,0.004253,94190.0,94175.0,0.3239402]
[1736356727226,0.0001704,94199.0,94175.0,0.3239402]
[1736356727434,0.004253,94196.0,94175.0,0.3239402]
[1736356727663,0.0001704,94199.0,94175.0,0.3239402]
[1736356727874,0.004253,94197.0,94175.0,0.3239402]
[1736356728081,0.004253,94197.0,94175.0,0.4739402]
[1736356728290,0.0001704,94199.0,94175.0,0.3259402]
[1736356728498,0.212326,94195.0,94175.0,0.3259402]
[1736356728706,0.00107751,94176.0,94175.0,0.40900972]
[1736356728941,0.00107751,94176.0,94175.0,0.3339402]
[1736356730387,0.00107751,94176.0,94175.0,0.3319402]
[1736356730598,7.751e-05,94176.0,94175.0,0.3239402]
[1736356730811,7.751e-05,94176.0,94175.0,0.22264044]
[1736356731428,7.751e-05,94176.0,94175.0,0.01027044]
[1736356732034,0.00107751,94176.0,94175.0,0.01827044]
[1736356732397,7.751e-05,94176.0,94175.0,0.01027044]
[1736356732603,0.00107751,94176.0,94175.0,0.01827044]
[1736356732974,7.751e-05,94176.0,94175.0,0.00727044]
[1736356733196,7.751e-05,94176.0,94175.0,0.00927044]
[1736356733401,0.00107751,94176.0,94175.0,0.01727044]
[1736356733583,7.751e-05,94176.0,94175.0,0.002]
[1736356733786,7.751e-05,94176.0,94170.0,4e-05]
[1736356734104,7.751e-05,94176.0,94175.0,0.01]
[1736356734105,0.00230375,94176.0,94175.0,0.01]
[1736356734305,0.10660351,94176.0,94175.0,0.01]
[1736356734436,0.25660351,94176.0,94175.0,0.01]
[1736356734641,0.25537727,94176.0,94175.0,0.008]
[1736356735047,0.57474,94175.0,94170.0,4e-05]
[1736356735248,0.105526,94174.0,94170.0,4e-05]
[1736356735453,0.44775,94173.0,94171.0,0.00729852]
[1736356735702,0.105526,94172.0,94171.0,0.00729852]
[1736356736070,0.278526,94172.0,94171.0,0.00729852]
[1736356736275,0.37729976,94172.0,94171.0,0.00729852]
[1736356736903,0.25829976,94172.0,94171.0,0.00729852]
[1736356737458,0.26029976,94172.0,94171.0,0.00729852]
[1736356738072,0.25429976,94172.0,94171.0,0.00729852]
[1736356738486,0.25929976,94172.0,94171.0,0.00729852]
[1736356738890,0.37729976,94172.0,94171.0,0.00729852]
[1736356739118,0.61251676,94172.0,94171.0,0.00729852]
[1736356739328,0.61251676,94172.0,94171.0,0.00687206]
[1736356739724,0.66239,94166.0,94165.0,25.0]
[1736356739923,3.20166276,94166.0,94165.0,24.851327]
[1736356740126,4.46456766,94166.0,94165.0,24.101427]
[1736356740250,5.01613466,94166.0,94165.0,23.834627]
[1736356740486,3.18949866,94166.0,94165.0,23.834627]
[1736356740686,3.48037866,94166.0,94165.0,23.834627]
[1736356740924,3.07692566,94166.0,94165.0,23.628449]
[1736356741167,3.04886266,94166.0,94165.0,23.628449]
[1736356741373,3.04886266,94166.0,94165.0,23.564732]
[1736356741573,3.06628363,94166.0,94165.0,23.564732]
[1736356741792,3.06628363,94166.0,94165.0,22.8674374]
[1736356742001,2.16744041,94166.0,94165.0,22.54271137]
[1736356742181,2.15001944,94166.0,94165.0,22.46645518]
[1736356742315,2.18182503,94166.0,94165.0,22.38093511]
[1736356742516,2.19082503,94166.0,94165.0,22.22118326]
[1736356742768,2.19082503,94166.0,94165.0,22.12081574]
[1736356742971,2.99679347,94166.0,94165.0,21.63912267]
[1736356743145,2.99679347,94166.0,94165.0,21.36765585]
[1736356743480,2.42480998,94166.0,94165.0,21.13336806]
[1736356743677,2.75741204,94166.0,94165.0,20.59996761]
[1736356743918,2.84829204,94166.0,94165.0,20.48562351]
[1736356744153,2.84829204,94166.0,94165.0,20.18503324]
[1736356744154,3.44295204,94166.0,94165.0,20.18503324]
[1736356744360,3.44295204,94166.0,94165.0,18.50260417]
[1736356744572,4.29695204,94166.0,94165.0,17.49554931]
[1736356744776,4.23996129,94166.0,94165.0,17.33150231]
[1736356744990,4.33084129,94166.0,94165.0,16.6733048]
[1736356745209,4.35354182,94166.0,94165.0,15.62064604]
[1736356745422,4.3701858,94166.0,94165.0,6.91860918]
[1736356745630,4.85650109,94166.0,94165.0,4.39990306]
[1736356745850,4.71803131,94166.0,94165.0,2.88473826]
[1736356746062,4.85313229,94166.0,94165.0,2.35247964]
[1736356746273,4.61818513,94166.0,94165.0,1.50007963]
[1736356746483,5.64275813,94166.0,94165.0,1.49807963]
[1736356746756,5.15175813,94166.0,94165.0,1.07124132]
[1736356746974,4.54262064,94166.0,94165.0,0.59203207]
[1736356747190,5.11368018,94166.0,94165.0,0.32745732]
[1736356747364,4.1749562,94166.0,94165.0,0.32845732]
[1736356747539,3.75147414,94166.0,94165.0,0.32845732]
[1736356747719,3.39191414,94166.0,94165.0,0.32745732]
[1736356747940,2.69723354,94166.0,94165.0,0.22226232]
[1736356748123,2.77915354,94166.0,94165.0,0.22226232]
[1736356748544,3.17632554,94166.0,94165.0,0.22226232]
[1736356748744,3.29024554,94166.0,94165.0,0.22226232]
[1736356748983,2.78815354,94166.0,94165.0,0.11606732]
[1736356749187,2.69723354,94166.0,94165.0,0.11606732]
[1736356749338,2.69723354,94166.0,94165.0,0.11506732]
[1736356749339,2.58823354,94166.0,94165.0,0.11506732]
[1736356749576,1.63748054,94166.0,94165.0,0.11506732]
[1736356749906,2.82015354,94166.0,94165.0,0.11506732]
[1736356750026,2.82915354,94166.0,94165.0,0.05135032]
[1736356750228,2.78815354,94166.0,94165.0,0.00887232]
[1736356750430,2.77915354,94166.0,94165.0,0.00887232]
[1736356750629,2.67015354,94166.0,94165.0,0.00887232]
[1736356750851,2.79734795,94166.0,94165.0,0.00887232]
[1736356751060,2.69742795,94166.0,94165.0,0.00887232]
[1736356751282,1.28749195,94166.0,94165.0,0.00887232]
[1736356751485,1.37849195,94166.0,94165.0,0.00887232]
[1736356751700,1.27849195,94166.0,94165.0,0.03015888]
[1736356751931,1.28649195,94166.0,94165.0,0.03015888]
[1736356752528,1.38649195,94166.0,94165.0,0.03015888]
[1736356752880,1.39549195,94166.0,94165.0,0.03015888]
[1736356753043,1.53649195,94166.0,94165.0,0.03015888]
[1736356753246,1.43749195,94166.0,94165.0,0.03015888]
[1736356753456,1.35257195,94166.0,94165.0,0.03015888]
[1736356753654,1.1409129,94166.0,94165.0,0.03015888]
[1736356753853,1.38020866,94166.0,94165.0,0.03015888]
[1736356754206,1.37120866,94166.0,94165.0,0.03015888]
[1736356754460,1.37720866,94166.0,94165.0,0.00887232]
[1736356754680,1.38620866,94166.0,94165.0,0.00887232]
[1736356754861,1.38020866,94166.0,94165.0,0.00887232]
[1736356755095,1.38620866,94166.0,94165.0,0.00987232]
[1736356755300,1.47712866,94166.0,94165.0,0.00991232]
[1736356755982,1.46812866,94166.0,94165.0,0.00991232]
[1736356756200,0.8999129,94166.0,94165.0,0.01091232]
[1736356756405,0.8999129,94166.0,94165.0,0.00991232]
[1736356756406,0.8939129,94166.0,94165.0,0.00991232]
[1736356756623,1.1041649,94166.0,94165.0,0.00891232]
[1736356756847,1.0499129,94166.0,94165.0,0.00991232]
[1736356757273,1.0409129,94166.0,94165.0,0.00891232]
[1736356757482,0.5939129,94166.0,94165.0,0.00991232]
[1736356757686,0.5989129,94166.0,94165.0,0.00991232]
[1736356757899,0.5989129,94166.0,94165.0,0.00891232]
[1736356757900,0.5899129,94166.0,94165.0,0.00891232]
[1736356758119,0.3775229,94166.0,94165.0,0.00891232]
[1736356758332,0.26807518,94166.0,94165.0,0.11321208]
[1736356758542,0.03,94182.0,94165.0,0.11321208]
[1736356758749,0.212354,94183.0,94166.0,0.10429976]
[1736356758965,0.1,94197.0,94166.0,0.10429976]
[1736356758966,0.15,94179.0,94166.0,0.10429976]
[1736356759182,0.009,94166.0,94165.0,0.00991232]
[1736356759441,0.3124884,94199.0,94165.0,0.11321208]
[1736356759652,0.3124884,94199.0,94165.0,0.00991232]
[1736356759653,0.005,94166.0,94165.0,0.00991232]
[1736356759860,0.005,94166.0,94165.0,0.11521208]
[1736356759861,0.3723379,94166.0,94165.0,0.11521208]
[1736356760067,0.3723379,94166.0,94165.0,0.00991232]
[1736356760285,0.3723379,94166.0,94165.0,0.00891232]
[1736356760514,0.3733379,94166.0,94165.0,0.00891232]
[1736356760717,0.3733379,94166.0,94165.0,0.0303517]
[1736356760923,0.3733379,94166.0,94165.0,0.0343517]
[1736356762245,0.3723379,94166.0,94165.0,0.0303517]
[1736356762459,0.6622459,94166.0,94165.0,0.0303517]
[1736356762667,0.6622459,94166.0,94165.0,0.00891232]
[1736356762668,0.6274109,94166.0,94165.0,0.00891232]
[1736356762883,0.91464066,94166.0,94165.0,0.00891232]
[1736356763089,0.91764066,94166.0,94165.0,0.00891232]
[1736356763533,0.91464066,94166.0,94165.0,0.00891232]
[1736356763767,1.05064066,94166.0,94165.0,3.2e-07]
[1736356763977,0.212422,94152.0,94150.0,4e-05]
[1736356764158,0.15,94151.0,94150.0,4e-05]
[1736356764611,0.33722976,94151.0,94150.0,4e-05]
[1736356764827,0.49272776,94151.0,94150.0,4e-05]
[1736356765049,0.15,94151.0,94150.0,4e-05]
[1736356765689,0.336516,94151.0,94150.0,4e-05]
[1736356765857,0.33722976,94151.0,94150.0,4e-05]
[1736356766276,0.65090176,94151.0,94150.0,4e-05]
[1736356766475,0.445356,94150.0,94149.0,3.7e-07]
[1736356766739,1.34051676,94150.0,94149.0,3.7e-07]
[1736356766922,0.64965576,94150.0,94149.0,3.7e-07]
[1736356767725,0.65465576,94150.0,94149.0,0.00100037]
[1736356767960,0.65465576,94150.0,94149.0,3.7e-07]
[1736356769385,0.545399,94131.0,94127.0,8.52e-05]
[1736356769600,0.9179853,94131.0,94130.0,0.00059406]
[1736356770043,1.0658583,94131.0,94130.0,0.00059406]
[1736356770506,1.1662503,94131.0,94130.0,0.00059406]
[1736356770791,1.1712503,94131.0,94130.0,0.00059406]
[1736356771045,1.27555006,94131.0,94130.0,0.00059406]
[1736356771754,0.9229853,94131.0,94130.0,0.00059406]
[1736356771957,1.2668343,94131.0,94130.0,0.00059406]
[1736356772158,0.9229853,94131.0,94130.0,0.00059406]
[1736356772368,1.4819513,94131.0,94130.0,0.00059406]
[1736356772581,1.2246263,94131.0,94130.0,0.00059406]
[1736356773130,1.0967673,94131.0,94130.0,0.00059406]
[1736356773531,0.9229853,94131.0,94130.0,0.00059406]
[1736356773734,1.12753106,94131.0,94130.0,0.00059406]
[1736356774365,0.212524,94107.0,94106.0,0.01193268]
[1736356774708,0.5851446,94107.0,94106.0,0.03548664]
[1736356774906,0.3726206,94107.0,94106.0,0.03548664]
[1736356775034,0.3726206,94107.0,94106.0,0.0570756]
[1736356775983,0.3736206,94107.0,94106.0,0.0630756]
[1736356776562,0.3736206,94107.0,94106.0,0.18444536]
[1736356776761,0.1,94141.0,94107.0,0.023]
[1736356776762,0.21248,94127.0,94107.0,0.023]
[1736356776970,0.212491,94122.0,94107.0,0.12729976]
[1736356777383,0.212452,94139.0,94125.0,0.01707]
[1736356777624,0.5849443,94139.0,94127.0,0.023]
[1736356777832,0.5849443,94139.0,94129.0,0.023]
[1736356778038,0.5849443,94139.0,94068.0,0.2126952]
[1736356778039,0.15,94138.0,94114.0,0.01707]
[1736356778236,0.25,94136.0,94098.0,0.212543]
[1736356778444,0.25,94136.0,94130.0,0.02112509]
[1736356778612,0.15,94133.0,94130.0,0.02112509]
[1736356778813,0.637389,94134.0,94108.0,0.09897]
[1736356778814,0.15,94131.0,94108.0,0.0819]
[1736356779018,0.21249,94122.0,94108.0,0.0819]
[1736356779216,0.15,94123.0,94108.0,0.0819]
[1736356779413,60.0,94406.0,94108.0,0.0819]
[1736356779414,0.445401,94131.0,94109.0,0.023]
[1736356779597,0.212517,94110.0,94109.0,0.023]
[1736356779800,0.5851067,94110.0,94109.0,0.04412296]
[1736356779999,0.3725897,94110.0,94109.0,0.04412296]